Cogmind - Beta 14 @@@ ROGUE MODE // 2024.08.24 @ 00:45:36 Player: Olafz Result: Destroyed by B-75 Beast with Magnetic Acceleration Cannon Performance ------------- Evolutions (3) 1500 Regions Visited (5) 1000 Robots Destroyed (42) 210 Value Destroyed (1265) 1265 Prototype IDs (2) 40 Alien Tech Used (0) 0 Bonus (39) 39 TOTAL SCORE: 4054 Bonus ------- High Alert Combat Kills 39 Cogmind --------- Core Integrity 0/700 Matter 300/300 Energy 98/100 System Corruption 0% Temperature Cool (0) Movement Rolling (100) Location -7/Lower Caves Parts ------- > --- POWER (1) -------- (None) > --- PROPULSION (2) --- Armored Huge Wheel > --- UTILITY (8) ------ Large Storage Unit Targeting Computer Improved Target Analyzer > --- WEAPON (2) ------- Gauss Rifle Power Sword > --- INVENTORY (15) --- Light Nuclear Core Aluminum Leg Carbon-fiber Leg Spear Spear Spear Peak State ------------ > --- POWER ------------ Deuterium Engine > --- PROPULSION ------- Improved Treads Aluminum Leg > --- UTILITY ---------- Improved Heat Sink Improved Heat Sink Improved Heat Sink Improved Heat Sink Small Storage Unit Hacking Suite > --- WEAPON ----------- Heavy Particle Gun Heavy Particle Gun > --- INVENTORY -------- Improved Ion Engine Improved Ion Engine Light Nuclear Core Heat Sink High-capacity Matter Pod High-powered Shotgun Light Cannon [Rating: 31] Favorites ----------- Power Deuterium Engine Engine Deuterium Engine Propulsion Light Treads Treads Light Treads Leg Carbon-fiber Leg Wheel Compact Wheel Utility Small Storage Unit Device Improved Heat Sink Storage Small Storage Unit Processor Improved Target Analyzer Hackware Hacking Suite Protection Improved Light Armor Plating Weapon Heavy Particle Gun Energy Gun Heavy Particle Gun Ballistic Gun Light Assault Rifle Ballistic Cannon Light Cannon Slashing Weapon Power Sword Piercing Weapon Spear Build | -11 -10 -9 -8 -7 -7 ------- Run | Yrd Mat Mat Mat Fac Low Slots Evolved 6 | . . 2 2 2 . Power . | . . . . . . Propulsion . | . . . . . . Utility 6 | . . 2 2 2 . Weapon . | . . . . . . Parts Attached 52 | 6 3 15 12 7 9 Power 6 | 1 1 2 1 1 . Engine 6 | 1 1 2 1 1 . Core . | . . . . . . Reactor . | . . . . . . Propulsion 16 | 2 . 4 3 3 4 Treads 7 | . . 4 1 2 . Leg 5 | . . . 1 1 3 Wheel 4 | 2 . . 1 . 1 Hover . | . . . . . . Flight . | . . . . . . Utility 14 | 1 1 2 6 1 3 Device 8 | . . 2 6 . . Storage 2 | 1 . . . . 1 Processor 2 | . . . . . 2 Hackware 1 | . 1 . . . . Protection 1 | . . . . 1 . Artifact . | . . . . . . Weapon 16 | 2 1 7 2 2 2 Energy Gun 8 | 1 . 5 2 . . Energy Cannon . | . . . . . . Ballistic Gun 4 | 1 . 2 . . 1 Ballistic Cannon 1 | . 1 . . . . Launcher . | . . . . . . Special Weapon . | . . . . . . Impact Weapon . | . . . . . . Slashing Weapon 1 | . . . . . 1 Piercing Weapon 2 | . . . . 2 . Special Melee Weapon . | . . . . . . Unidentified Prototypes 2 | . . 2 . . . Parts Lost 29 | . 3 2 10 12 2 Power 3 | . 1 1 . 1 . Propulsion 10 | . 1 1 3 3 2 Utility 9 | . . . 3 6 . Weapon 7 | . 1 . 4 2 . Highest Loss Streak 10 | . 2 2 4 10 2 To Critical Strikes . | . . . . . . Average Slot Usage (%) 71 | . 89 85 85 61 24 Engine 6 | . 12 7 9 5 . Treads 9 | . . 19 10 8 . Leg 1 | . . . . 1 6 Wheel 3 | . 24 1 1 . . Device 13 | . . 13 29 14 . Storage 8 | . 14 11 9 7 . Processor 1 | . . . . . 7 Hackware 8 | . 12 11 9 6 . Energy Gun 11 | . 9 19 16 . . Ballistic Gun 2 | . 14 . . . 2 Slashing Weapon 1 | . . . . . 5 Piercing Weapon 1 | . . . . 12 . Peak Build Rating 31 | 6 9 19 31 27 25 Average Rating 17 | 4 8 15 25 21 13 On Entrance 8 | . 6 8 19 19 1 Naked Turns 91 | . . . . 9 82 Heaviest Build 27 | 11 14 20 26 21 27 Greatest Support 40 | 26 26 40 40 40 28 Greatest Overweight (x) 8 | . 1 1 8 2 2 Average Overweight (x) . | . . . 1 . . Largest Inventory Capacity 15 | 8 8 8 8 8 15 Average Capacity 7 | 7 8 8 8 7 5 Most Carried 8 | 5 6 8 8 8 6 Average Carried 6 | 2 5 7 7 6 5 Final Capacity 15 | 8 8 8 8 5 15 Final Carried 8 | 5 5 8 8 5 6 Class Distribution -------------------- 64% | Mutant 35% | Scavenger-Mutant Dominant Class ---------------- Mutant | -10/Materials Scavenger-Mutant | -9/Materials Mutant | -8/Materials Scavenger-Mutant | -7/Factory Mutant | -7/Lower Caves Resources | -11 -10 -9 -8 -7 -7 ----------- Run | Yrd Mat Mat Mat Fac Low Matter Collected 937 | 113 152 423 83 50 116 Remotely . | . . . . . . Salvage Created 1648 | . 200 606 574 65 203 Parts 87 | . 12 32 30 5 8 Haulers Intercepted 3 | . . 2 1 . . Recyclers Shooed . | . . . . . . Parts Field Recycled . | . . . . . . Retrieved Matter . | . . . . . . Parts Self-Destructed 6 | . . . . . 6 Prevented . | . . . . . . Kills | -11 -10 -9 -8 -7 -7 ------- Run | Yrd Mat Mat Mat Fac Low Combat Hostiles Destroyed 36 | . 4 12 15 1 4 Melee 4 | . . . . 1 3 Guns 30 | . 4 11 14 . 1 Classes Destroyed 8 | . 2 4 1 . 1 Worker 1 | . . . 1 . . Hauler 3 | . . 2 1 . . Recycler 1 | . . 1 . . . Operator 1 | . 1 . . . . Swarmer 9 | . . 3 6 . . Grunt 21 | . 4 6 8 . 3 Sentry 5 | . . 3 1 1 . Hunter 1 | . . . . . 1 Best Kill Streak 7 | . 3 4 7 1 3 Combat Bots Only 7 | . 3 3 7 1 3 Max Kills in Single Turn 2 | . 1 2 2 1 1 Gunslinging 1 | . . 1 1 . . Exploded . | . . . . . . Melee 1 | . . . . 1 1 Uniques/NPCs Destroyed . | . . . . . . Combat | -11 -10 -9 -8 -7 -7 -------- Run | Yrd Mat Mat Mat Fac Low Hostile Shots Fired 380 | . 33 68 113 128 38 Missed 121 | . 11 28 30 44 8 Damage Taken 3743 | . 239 464 1466 1147 427 Core 1179 | . 44 90 321 441 283 Absorbed by Shields . | . . . . . . Core Remaining (%) 75 | 100 82 77 41 . . Volleys Fired 127 | . 33 38 47 . 9 Largest 2 | . 2 2 2 . 1 Hottest 110 | . 60 110 110 . 28 Shots Fired 228 | . 54 76 89 . 9 Gun 218 | . 54 66 89 . 9 Cannon 10 | . . 10 . . . Launcher . | . . . . . . Special . | . . . . . . Kinetic 52 | . 33 10 . . 9 Thermal 155 | . . 66 89 . . Explosive . | . . . . . . Electromagnetic 21 | . 21 . . . . Robot Hit Streak 17 | . 6 17 14 . 8 Robot Miss Streak 6 | . 6 3 3 . 1 Penetration Max . | . . . . . . Secondary Targets 6 | . . 1 5 . . Max Gunslinging Chain 1 | . . 1 1 . . Shots Hit Robots 169 | . 30 50 61 8 20 Core Hits 59 | . 10 16 24 3 6 Critical Kills . | . . . . . . Critical Parts Destroyed . | . . . . . . Critical Strikes 7 | . . . 2 1 4 Burn 2 | . . . 2 . . Sever 4 | . . . . . 4 Impale 1 | . . . . 1 . Melee Attacks 25 | . . . . 11 14 Impact . | . . . . . . Slashing 14 | . . . . . 14 Piercing 11 | . . . . 11 . Sneak Attacks . | . . . . . . Combat Hostiles . | . . . . . . Follow-up Attacks 2 | . . . . 2 . Damage Inflicted 3319 | . 326 945 1254 212 582 Guns 2502 | . 326 809 1254 . 113 Cannons 136 | . . 136 . . . Explosions . | . . . . . . Melee 681 | . . . . 212 469 Ramming . | . . . . . . Kinetic 447 | . 198 136 . . 113 Thermal 2063 | . . 809 1254 . . Explosive . | . . . . . . Electromagnetic 128 | . 128 . . . . Impact . | . . . . . . Slashing 469 | . . . . . 469 Piercing 212 | . . . . 212 . Highest Corruption . | . . . . . . Average Corruption . | . . . . . . Corruption Purged . | . . . . . . Corruption Blocked . | . . . . . . Overload Shots . | . . . . . . Overflow Damage 9 | . . . . 9 . Projectiles . | . . . . . . Explosions . | . . . . . . Melee 9 | . . . . 9 . Knockbacks . | . . . . . . Impact . | . . . . . . Kinetic . | . . . . . . Secondary . | . . . . . . Self-Inflicted Damage . | . . . . . . Shots . | . . . . . . Rammed 1 | . . . . 1 . Targets Rammed 1 | . . . . 1 . Kicked . | . . . . . . Crushed . | . . . . . . Highest Temperature 259 | . 75 259 9 . . Average Temperature 68 | . 28 107 9 . . Received Heat Transfer 1014 | . 132 216 360 189 117 Effects 1 | . . 1 . . . Energy Bleed 1 | . . 1 . . . Siege Activations . | . . . . . . Robots Corrupted . | . . . . . . Combat Hostiles . | . . . . . . Parts Fried . | . . . . . . Impact Corruptions . | . . . . . . Robots Melted 2 | . . 1 1 . . Combat Hostiles 2 | . . 1 1 . . Parts Melted 8 | . . 4 4 . . Heat Transferred 4070 | . . 1628 2442 . . Parts Sabotaged . | . . . . . . Parts Stolen . | . . . . . . Parts Stripped . | . . . . . . Power Chain Reactions . | . . . . . . Alert | -11 -10 -9 -8 -7 -7 ------- Run | Yrd Mat Mat Mat Fac Low Peak Influence 472 | . 360 421 472 188 . Initial 152 | . . 152 144 133 . Average 245 | . 176 269 311 151 . Maximum Alert Level 2 | . 1 2 2 . . Low Security (%) 43 | 100 69 34 15 100 . Level 1 46 | . 30 59 62 . . Level 2 9 | . . 6 22 . . Level 3 . | . . . . . . Level 4 . | . . . . . . Level 5 . | . . . . . . High Security . | . . . . . . Max Security . | . . . . . . Squads Dispatched 7 | . 2 2 2 1 . Investigation 5 | . 2 1 1 1 . Extermination . | . . . . . . Reinforcement 2 | . . 1 1 . . Assault . | . . . . . . Garrison . | . . . . . . Intercept . | . . . . . . Searches Triggered . | . . . . . . Construction Impeded . | . . . . . . Haulers Reinforced . | . . . . . . Active Scanning Responses . | . . . . . . Cargo Convoy Interrupts . | . . . . . . Stealth | -11 -10 -9 -8 -7 -7 --------- Run | Yrd Mat Mat Mat Fac Low Distress Signals 2 | . 1 1 . . . Communications Jammed . | . . . . . . Distress Signals . | . . . . . . Times Spotted 68 | . 9 17 25 9 8 Peak Tracking Total 8 | . 4 4 8 7 4 Tactical Retreats 9 | . 1 1 3 1 3 Traps | -11 -10 -9 -8 -7 -7 ------- Run | Yrd Mat Mat Mat Fac Low Traps Triggered 2 | . . 1 1 . . Indirectly . | . . . . . . Trap Hack Attempts . | . . . . . . Triggered . | . . . . . . Disarmed . | . . . . . . Reprogrammed . | . . . . . . Reused . | . . . . . . Traps Extracted . | . . . . . . Installed . | . . . . . . Triggered . | . . . . . . Machines | -11 -10 -9 -8 -7 -7 ---------- Run | Yrd Mat Mat Mat Fac Low Machines Disabled . | . . . . . . Max in Single Turn . | . . . . . . Machines Repaired . | . . . . . . Machines Dismantled . | . . . . . . Machines Sabotaged . | . . . . . . Overloaded Fab Kills . | . . . . . . Hacking | -11 -10 -9 -8 -7 -7 --------- Run | Yrd Mat Mat Mat Fac Low Machines Accessed 5 | . 3 . 1 1 . Terminals 1 | . 1 . . . . Fabricators . | . . . . . . Repair Stations . | . . . . . . Recycling Units 4 | . 2 . 1 1 . Scanalyzers . | . . . . . . Garrison Access . | . . . . . . Total Hacks 7 | . 5 . 1 1 . Successful 7 | . 5 . 1 1 . Failed . | . . . . . . Catastrophic . | . . . . . . Database Lockouts . | . . . . . . Manual 6 | . 4 . 1 1 . Terminals 3 | . 3 . . . . Fabricators . | . . . . . . Repair Stations . | . . . . . . Recycling Units 4 | . 2 . 1 1 . Scanalyzers . | . . . . . . Garrison Access . | . . . . . . Terminal Hacks 1 | . 1 . . . . Zone Layout 1 | . 1 . . . . Fabricator Hacks . | . . . . . . Repair Station Hacks . | . . . . . . Recycling Unit Hacks . | . . . . . . Scanalyzer . | . . . . . . Garrison Access Hacks . | . . . . . . Unauthorized Hacks 5 | . 3 . 1 1 . Terminals 1 | . 1 . . . . Botnet 1 | . 1 . . . . Fabricators . | . . . . . . Repair Stations . | . . . . . . Recycling Units 4 | . 2 . 1 1 . Tunnel 4 | . 2 . 1 1 . Scanalyzers . | . . . . . . Garrison Access . | . . . . . . Data Cores Recovered 1 | . 1 . . . . Used 1 | . 1 . . . . Hacking Detections 1 | . 1 . . . . Full Trace Events . | . . . . . . Feedback Events . | . . . . . . Feedback Blocked . | . . . . . . Robot Schematics Acquired . | . . . . . . Robots Built . | . . . . . . Authchips . | . . . . . . Time . | . . . . . . Total Robot Build Rating . | . . . . . . Part Schematics Acquired . | . . . . . . Parts Built . | . . . . . . Authchips . | . . . . . . Time . | . . . . . . Total Part Build Rating . | . . . . . . Parts Repaired . | . . . . . . Time . | . . . . . . Parts Recycled . | . . . . . . Recycled Matter . | . . . . . . Retrieved Matter . | . . . . . . Retrieved Components . | . . . . . . Parts Scanalyzed . | . . . . . . Part Schematics Acquired . | . . . . . . Parts Damaged . | . . . . . . Bothacking | -11 -10 -9 -8 -7 -7 ------------ Run | Yrd Mat Mat Mat Fac Low Used RIF Installer . | . . . . . . Robots Hacked . | . . . . . . Non-combat . | . . . . . . Combat . | . . . . . . Robot Hacks Applied . | . . . . . . Relay Couplers Released . | . . . . . . Fabnet Peak Effective % . | . . . . . . Robots Rewired . | . . . . . . Allies Hacked . | . . . . . . Hacks Repelled . | . . . . . . Allies | -11 -10 -9 -8 -7 -7 -------- Run | Yrd Mat Mat Mat Fac Low Total Allies . | . . . . . . Largest Group . | . . . . . . Highest-Rated Group . | . . . . . . Highest-Rated Ally . | . . . . . . Total Orders . | . . . . . . Ally Attacks . | . . . . . . Total Damage . | . . . . . . Kills . | . . . . . . Allies Corrupted . | . . . . . . Allies Melted . | . . . . . . Intel | -11 -10 -9 -8 -7 -7 ------- Run | Yrd Mat Mat Mat Fac Low Robot Analysis Total . | . . . . . . Derelict Logs Recovered . | . . . . . . Drone Launches . | . . . . . . Drone Recoveries . | . . . . . . Exploration | -11 -10 -9 -8 -7 -7 ------------- Run | Yrd Mat Mat Mat Fac Low Turns Passed 1908 | 56 220 567 508 187 370 Spaces Moved 1087 | 47 133 283 185 99 340 Core 213 | 1 . . 12 29 171 Treads 414 | . . 240 112 62 . Legs 149 | . . . . 8 141 Wheels 311 | 46 133 43 61 . 28 Hover . | . . . . . . Flight . | . . . . . . Fastest Speed 50 | 50 90 95 115 50 50 Average Speed 124 | 89 91 150 181 143 84 Slowest Speed 450 | 100 95 160 450 240 150 Overloaded Moves . | . . . . . . Propulsion Burnouts . | . . . . . . Robots Hopped . | . . . . . . Cave-ins Triggered . | . . . . . . Exploration Rate (%) 23 | 3 27 35 22 2 49 Regions Visited 5 Branch Regions 1 Pre-discovered Areas 4 | . 2 . 1 1 . Known Exits Taken . | . . . . . . Unknown Exits Taken 5 | 1 1 1 1 1 . Scrap Searched 1 | . . . . . 1 Spaces Dug 1 | . . . . . 1 Terrain Destroyed 5 | . . . 4 . 1 Melee 1 | . . . . . 1 Projectile 4 | . . . 4 . . AOE . | . . . . . . Terrain Rammed . | . . . . . . Walls Destroyed . | . . . . . . Machines Disabled . | . . . . . . Actions | -11 -10 -9 -8 -7 -7 --------- Run | Yrd Mat Mat Mat Fac Low Total 1374 | 57 183 351 266 127 390 Wait 47 | . 14 . 15 2 16 Move 1082 | 46 132 282 184 98 340 Hop . | . . . . . . Pick Up 17 | 5 1 4 2 4 1 Fast Attach 40 | 6 2 9 9 5 9 Attach 7 | . 1 2 2 2 . Detach 6 | . . 3 2 1 . Swap 5 | . . 4 1 . . Drop 19 | . . 9 4 5 1 Fire 127 | . 33 38 47 . 9 Melee 23 | . . . . 9 14 Ram 1 | . . . . 1 . Kick . | . . . . . . Crush . | . . . . . . Escape Stasis . | . . . . . . Rewire . | . . . . . . Trap . | . . . . . . Miscellaneous . | . . . . . . Route ------- -11/Scrapyard -10/Materials -9/Materials -8/Materials -7/Factory -7/Lower Caves History --------- Turn | Location | Event 11 | -11/Scrapyard | Discovered new exit (range 16) 57 | -11/Scrapyard | Entered Materials 243 | -10/Materials | Discovered new exit (range 16) 277 | -10/Materials | Entered another Materials area 277 | -9/Materials | Evolved 2 slots: Utility x2 309 | -9/Materials | Build established: Mutant 573 | -9/Materials | Discovered new exit (range 10) 835 | -9/Materials | Build established: Scavenger-Mutant 844 | -9/Materials | Entered another Materials area 844 | -8/Materials | Evolved 2 slots: Utility x2 1015 | -8/Materials | Lost 3 parts (1n1u1w) 1180 | -8/Materials | Destroyed 7 combat bots 1328 | -8/Materials | Discovered new exit (range 14) 1346 | -8/Materials | Core integrity fell below 50% 1352 | -8/Materials | Entered Factory 1352 | -7/Factory | Evolved 2 slots: Utility x2 1380 | -7/Factory | Lost 4 parts (1n1u2w) 1532 | -7/Factory | Discovered new exit (range 13) 1533 | -7/Factory | Core integrity fell below 50% 1539 | -7/Factory | Entered Lower Caves 1561 | -7/Lower Caves | Lost 10 parts (1p2n5u2w) 1636 | -7/Lower Caves | Core integrity fell below 20% 1812 | -7/Lower Caves | Build established: Mutant 1892 | -7/Lower Caves | Spotted B-75 Beast 1909 | -7/Lower Caves | Destroyed by B-75 Beast with Magnetic Acceleration Cannon Last Messages --------------- Slug penetrates H-55 Commando. Aluminum Leg destroyed. Slug penetrates H-55 Commando. Carbon-fiber Leg destroyed. Slug penetrates Wall. H-55 Commando destroyed. Acquired 36 matter. Lgt. Nuclear Core fries itself beyond repair. Acquired Carbon-fiber Leg. Acquired Targeting Computer. Searching scrap... Found Arm. Huge Wheel. Found Lrg. Storage Unit. Found 62 Matter. Acquired 20 matter. Dropped Carbon-fiber Leg. Acquired Arm. Huge Wheel. Acquired Lrg. Storage Unit. Acquired Carbon-fiber Leg. Acquired 20 matter. Map ----- +----------------------------------------------------+ | ?????????????????????????????????????????????????? | | ?????????????????????????????????????????????????? | | ?????????????????????????????????????????????????? | | ?????????????????????????????????? ????????????? | | ?????????????????????????????????? ????????????? | | ??????????????????????????? ??? ????????????? | | ????????????????????????? ?? ??? ????????????? | | ??????????????????????? ? ??? ????????????? | | ???????????????????????? ## ?? #????????????? | | ????????????????????????? ?? ##???????????? | | ?????????????????????????# $ ?# #???????????? | | ?????????????????????????? $## #???????????? | | ?????????????????????????? #????? ?????? | | ?????????????????????????? #????? ?#???? | | ????????????????????????? BB ###### #?### | | ?????????????????????????? BB | | ??????????????????###????? #" ? # | | ?????????????????## #????# ;## #### # ? | | ????????????????## ????# ;?# "## # ??# # | | ????????????#???# ???# #?# ### ?## | | ???????????? ## ???# #### ### ?## # | | ?????????????? ?## ### ## ### | | ???????????????? ## ### ### ## | | ??????????????????? ## #?## | | ?????????????????????# # ### # # | | ??????????????????????# @ % # | | ??????????????????????## | | ???????????????????????#% ## | | ???????????????????????# ########### # # | | ???????????????????????# #?????????## ## ## | | ???????????????????????## #?????????# #####? | | ????????????????????????# ##?????????####????? | | ????????????????????????## ####???????????????#### | | ?????????????????????????###???????????????#### | | ??????????????????????????????????????????## | | ??????????????????????????????????????????# | | ??????????????????????????????????????????# #?# | | ??????????????????????????????????????????# ### | | ??????????????????????????????????????????## | | ???????????????????????????????????????????# | | ???????????????????????????????????????????# | | ???????????????????????????????????????????# | | ???????????????????????????????????????????# | | ???????????????????????????????????????????## | | ????????????????????????????????????????????# | | ???????????????????????????????????????###### | | ???????????????????????????????????????# ! ### | | ???????????????????????????????????????# #### | | ???????????????????????????????????????#=###% | | ???????????????????????????????????????#%## ## | +----------------------------------------------------+ Best States ------------- Heat Dissipation 87 Energy Generation 14 Energy Capacity 275 Matter Stores 300 Matter Capacity 300 Sight Range 16 Terrain Scan Density 10 Armor Coverage 150 Evasion (%) 55 Targeting Accuracy 5 Target Analysis 6 Recoil Reduction 2 Particle Charging 15 Offensive Hacking 10 Item Schematics ----------------- None Robot Schematics ------------------ None Fabricated ------------ Nothing Alien Tech Used ----------------- None Achievements -------------- None Challenges ------------ None Game ------ Seed BeamDroneChainsword Manual? 0 Play Time 00:23:24 Cumulative 246.5 hours Start 2024.08.23 @ 23:49:34 End 2024.08.24 @ 00:45:36 Sessions 1 Manual Loads 0 Difficulty Rogue Special Mode None Game No. 431 Rogue 429 Adventurer 2 Explorer 0 Win Type - Total 11 Types 8/0/1/2/0/0/0/0/0 Lore% 73 Gallery% 68 Achievement% 57 Wizard Run 0 Options --------- Layout 0 ASCII 0 Keyboard 1 Movement Numpad Keybinds 1 Fullscreen 2 Font 18/SmallcapsGlow Map View 76x50 Zoom Use 0% Tactical HUD 1 Map Filters NONE Filters NONE Steam 1 RUN: 5f4a3051-cb26-438c-b4d1-99462b1e3c95